[Event "Late-Titled-Tuesday-Blitz-April-30-2024"]
[Site "Chess.com"]
[Date "2024.04.30"]
[Round "5"]
[White "kalxandria"]
[Black "OppieZippy"]
[Result "0-1"]
[WhiteElo "2227"]
[BlackElo "2403"]
[TimeControl "180+1"]
[EndTime "14:54:19 PDT"]
[Termination "OppieZippy won by resignation"]

1. e4 {[%clk 0:02:54.2]} 1... Nf6 {[%clk 0:03:00]} 2. e5 {[%clk 0:02:53.2]} 2...
Nd5 {[%clk 0:02:56.1]} 3. g3 {[%clk 0:02:47.9]} 3... d6 {[%clk 0:02:51.8]} 4.
exd6 {[%clk 0:02:46.4]} 4... exd6 {[%clk 0:02:46.5]} 5. Bg2 {[%clk 0:02:45.6]}
5... Nb6 {[%clk 0:02:46.4]} 6. d4 {[%clk 0:02:40.1]} 6... Be7 {[%clk 0:02:46.2]}
7. Ne2 {[%clk 0:02:38.7]} 7... d5 {[%clk 0:02:46.1]} 8. O-O {[%clk 0:02:36.4]}
8... O-O {[%clk 0:02:46.2]} 9. b3 {[%clk 0:02:35.3]} 9... Bf6 {[%clk 0:02:44.9]}
10. Bb2 {[%clk 0:02:34.3]} 10... Bf5 {[%clk 0:02:44.7]} 11. Nd2 {[%clk
0:02:31.9]} 11... c5 {[%clk 0:02:44.2]} 12. c3 {[%clk 0:02:20.4]} 12... cxd4
{[%clk 0:02:42.6]} 13. Nxd4 {[%clk 0:02:19.1]} 13... Bg6 {[%clk 0:02:42.7]} 14.
N2f3 {[%clk 0:02:06.5]} 14... Nc6 {[%clk 0:02:39.9]} 15. Re1 {[%clk 0:01:58.7]}
15... Qd7 {[%clk 0:02:39.5]} 16. Qd2 {[%clk 0:01:50]} 16... Rfe8 {[%clk
0:02:39.2]} 17. Rxe8+ {[%clk 0:01:36.8]} 17... Rxe8 {[%clk 0:02:39.1]} 18. Re1
{[%clk 0:01:37.7]} 18... Be4 {[%clk 0:02:39.2]} 19. a4 {[%clk 0:01:19.9]} 19...
h6 {[%clk 0:02:37.6]} 20. Re2 {[%clk 0:01:08]} 20... Nc8 {[%clk 0:02:35.7]} 21.
Qe1 {[%clk 0:01:03.8]} 21... Nd6 {[%clk 0:02:34.9]} 22. Ba3 {[%clk 0:01:02.3]}
22... Nxd4 {[%clk 0:02:25.6]} 23. Nxd4 {[%clk 0:01:00.1]} 23... Bxd4 {[%clk
0:02:23]} 24. cxd4 {[%clk 0:00:59.4]} 24... Nf5 {[%clk 0:02:23]} 25. f3 {[%clk
0:00:57]} 25... Nxd4 {[%clk 0:02:21.3]} 26. fxe4 {[%clk 0:00:42.9]} 26... Nxe2+
{[%clk 0:02:18.5]} 27. Qxe2 {[%clk 0:00:43.8]} 27... dxe4 {[%clk 0:02:18.3]} 28.
Bxe4 {[%clk 0:00:40]} 28... Qd4+ {[%clk 0:02:17.8]} 0-1

[Event "Late-Titled-Tuesday-Blitz-April-30-2024"]
[Site "Chess.com"]
[Date "2024.04.30"]
[Round "5"]
[White "SandwichOSaumon"]
[Black "lluiss"]
[Result "0-1"]
[WhiteElo "2382"]
[BlackElo "2231"]
[TimeControl "180+1"]
[EndTime "14:54:20 PDT"]
[Termination "lluiss won by resignation"]

1. e4 {[%clk 0:02:59.3]} 1... c5 {[%clk 0:03:00]} 2. Nf3 {[%clk 0:02:58.5]} 2...
d6 {[%clk 0:02:59.5]} 3. Bb5+ {[%clk 0:02:59]} 3... Bd7 {[%clk 0:02:59.7]} 4.
Bxd7+ {[%clk 0:02:59.6]} 4... Nxd7 {[%clk 0:03:00.3]} 5. O-O {[%clk 0:03:00.2]}
5... Ngf6 {[%clk 0:02:59.8]} 6. Re1 {[%clk 0:02:59.9]} 6... e6 {[%clk
0:02:59.8]} 7. c3 {[%clk 0:03:00.1]} 7... Be7 {[%clk 0:02:59.8]} 8. d4 {[%clk
0:02:58.8]} 8... cxd4 {[%clk 0:02:59.9]} 9. cxd4 {[%clk 0:02:59.7]} 9... d5
{[%clk 0:03:00]} 10. e5 {[%clk 0:03:00.2]} 10... Ne4 {[%clk 0:03:00.3]} 11. Nc3
{[%clk 0:03:00.9]} 11... Nxc3 {[%clk 0:03:00.1]} 12. bxc3 {[%clk 0:03:01.8]}
12... O-O {[%clk 0:02:59.9]} 13. Qd3 {[%clk 0:03:01.2]} 13... Rc8 {[%clk
0:02:53]} 14. g3 {[%clk 0:02:53.7]} 14... Qa5 {[%clk 0:02:47.8]} 15. Bd2 {[%clk
0:02:52.7]} 15... Nb6 {[%clk 0:02:36.9]} 16. h4 {[%clk 0:02:42.5]} 16... Nc4
{[%clk 0:02:36.5]} 17. Bg5 {[%clk 0:02:28.6]} 17... Ba3 {[%clk 0:02:27.1]} 18.
h5 {[%clk 0:02:17.8]} 18... Nb2 {[%clk 0:02:26.8]} 19. Qe3 {[%clk 0:02:01.9]}
19... Qxc3 {[%clk 0:02:23.4]} 20. Qf4 {[%clk 0:02:00.6]} 20... Nd3 {[%clk
0:02:19]} 21. Qg4 {[%clk 0:01:58]} 21... Nxe1 {[%clk 0:01:59]} 22. Bh6 {[%clk
0:01:53.6]} 22... Nxf3+ {[%clk 0:01:53.1]} 23. Kg2 {[%clk 0:01:51.4]} 23... g6
{[%clk 0:01:47]} 24. Qf4 {[%clk 0:01:51.2]} 24... f5 {[%clk 0:01:35.5]} 25. exf6
{[%clk 0:01:50.2]} 25... Qxd4 {[%clk 0:01:24.2]} 26. Bxf8 {[%clk 0:01:46.5]}
26... Qxf4 {[%clk 0:01:15.9]} 27. gxf4 {[%clk 0:01:45.6]} 27... Kxf8 {[%clk
0:01:08.5]} 28. Kxf3 {[%clk 0:01:45.3]} 28... Kf7 {[%clk 0:01:08.5]} 29. Rb1
{[%clk 0:01:43.4]} 29... b6 {[%clk 0:01:05.6]} 30. hxg6+ {[%clk 0:01:42.9]}
30... hxg6 {[%clk 0:01:05.2]} 31. Rh1 {[%clk 0:01:42.7]} 31... Kxf6 {[%clk
0:01:04.8]} 32. Rh7 {[%clk 0:01:43.6]} 32... a5 {[%clk 0:01:00.3]} 0-1

[Event "Late-Titled-Tuesday-Blitz-April-30-2024"]
[Site "Chess.com"]
[Date "2024.04.30"]
[Round "5"]
[White "2346PL"]
[Black "Evan_Attaker"]
[Result "0-1"]
[WhiteElo "2476"]
[BlackElo "2635"]
[TimeControl "180+1"]
[EndTime "14:54:23 PDT"]
[Termination "Evan_Attaker won by resignation"]

1. Nf3 {[%clk 0:02:55.3]} 1... c5 {[%clk 0:02:57.1]} 2. g3 {[%clk 0:02:54.4]}
2... b6 {[%clk 0:02:57.4]} 3. Bg2 {[%clk 0:02:54.2]} 3... Bb7 {[%clk 0:02:58.2]}
4. O-O {[%clk 0:02:54.5]} 4... Nf6 {[%clk 0:02:55.3]} 5. b3 {[%clk 0:02:50]}
5... e6 {[%clk 0:02:54]} 6. Bb2 {[%clk 0:02:48.5]} 6... Be7 {[%clk 0:02:54.6]}
7. c4 {[%clk 0:02:42.9]} 7... d6 {[%clk 0:02:54.5]} 8. d4 {[%clk 0:02:42.2]}
8... cxd4 {[%clk 0:02:55]} 9. Qxd4 {[%clk 0:02:42.1]} 9... Qc7 {[%clk
0:02:51.4]} 10. Nc3 {[%clk 0:02:39.6]} 10... a6 {[%clk 0:02:52]} 11. e4 {[%clk
0:02:31.1]} 11... Nbd7 {[%clk 0:02:51.8]} 12. h3 {[%clk 0:02:29.2]} 12... O-O
{[%clk 0:02:50]} 13. g4 {[%clk 0:02:28.8]} 13... Rac8 {[%clk 0:02:43]} 14. g5
{[%clk 0:02:22.2]} 14... Nh5 {[%clk 0:02:42.5]} 15. Ne2 {[%clk 0:02:21.7]} 15...
Nc5 {[%clk 0:01:56.3]} 16. Ng3 {[%clk 0:02:18.7]} 16... e5 {[%clk 0:01:56.2]}
17. Qe3 {[%clk 0:02:07.7]} 17... Nxg3 {[%clk 0:01:53.3]} 18. fxg3 {[%clk
0:02:08.6]} 18... Nxe4 {[%clk 0:01:53.6]} 19. Rad1 {[%clk 0:01:53.1]} 19... Nxg3
{[%clk 0:01:47]} 20. Nh4 {[%clk 0:01:50.4]} 20... Nxf1 {[%clk 0:01:42.5]} 21.
Kxf1 {[%clk 0:01:50.8]} 21... Bxg2+ {[%clk 0:01:40.1]} 22. Kxg2 {[%clk
0:01:50.7]} 22... g6 {[%clk 0:01:32]} 23. Nf3 {[%clk 0:01:40]} 23... Rfe8 {[%clk
0:01:27.5]} 24. h4 {[%clk 0:01:38.7]} 24... b5 {[%clk 0:01:22.6]} 25. Nd2 {[%clk
0:01:31.9]} 25... bxc4 {[%clk 0:01:08.4]} 26. bxc4 {[%clk 0:01:32]} 26... Qb7+
{[%clk 0:01:08]} 27. Kg1 {[%clk 0:01:28.2]} 27... Qxb2 {[%clk 0:01:07.7]} 0-1

[Event "Late-Titled-Tuesday-Blitz-April-30-2024"]
[Site "Chess.com"]
[Date "2024.04.30"]
[Round "5"]
[White "Supelyel"]
[Black "Fradi82"]
[Result "1-0"]
[WhiteElo "2392"]
[BlackElo "2196"]
[TimeControl "180+1"]
[EndTime "14:54:29 PDT"]
[Termination "Supelyel won by checkmate"]

1. c4 {[%clk 0:03:00.9]} 1... e5 {[%clk 0:02:58.7]} 2. Nc3 {[%clk 0:02:56.7]}
2... d6 {[%clk 0:02:58]} 3. g3 {[%clk 0:02:56.8]} 3... f5 {[%clk 0:02:56.9]} 4.
Bg2 {[%clk 0:02:56.4]} 4... Nf6 {[%clk 0:02:57.6]} 5. d3 {[%clk 0:02:56.5]} 5...
Be6 {[%clk 0:02:57.8]} 6. Bg5 {[%clk 0:02:56.4]} 6... c6 {[%clk 0:02:56.9]} 7.
Nf3 {[%clk 0:02:46.9]} 7... Be7 {[%clk 0:02:56.1]} 8. Bxf6 {[%clk 0:02:46.7]}
8... Bxf6 {[%clk 0:02:56.1]} 9. O-O {[%clk 0:02:47]} 9... O-O {[%clk 0:02:56.1]}
10. Qc2 {[%clk 0:02:47.5]} 10... Qe8 {[%clk 0:02:56.1]} 11. Rab1 {[%clk
0:02:46.5]} 11... Qh5 {[%clk 0:02:55.7]} 12. b4 {[%clk 0:02:45.6]} 12... f4
{[%clk 0:02:55.1]} 13. b5 {[%clk 0:02:44.1]} 13... Bh3 {[%clk 0:02:52.9]} 14.
bxc6 {[%clk 0:02:44]} 14... Nxc6 {[%clk 0:02:47.6]} 15. Rxb7 {[%clk 0:02:41.8]}
15... Bxg2 {[%clk 0:02:47.5]} 16. Kxg2 {[%clk 0:02:41.8]} 16... fxg3 {[%clk
0:02:46.2]} 17. fxg3 {[%clk 0:02:41.5]} 17... Ne7 {[%clk 0:02:17.3]} 18. Ne4
{[%clk 0:02:02.6]} 18... Nf5 {[%clk 0:02:14.8]} 19. Qd2 {[%clk 0:01:56.9]} 19...
Bd8 {[%clk 0:02:01.9]} 20. Kh1 {[%clk 0:01:43.5]} 20... Bb6 {[%clk 0:01:58.7]}
21. Qg5 {[%clk 0:01:38.6]} 21... Qxg5 {[%clk 0:01:43]} 22. Nfxg5 {[%clk
0:01:32.8]} 22... Ne3 {[%clk 0:01:43.3]} 23. Rf3 {[%clk 0:01:01.5]} 23... h6
{[%clk 0:01:39.4]} 24. Ne6 {[%clk 0:00:57.4]} 24... Rxf3 {[%clk 0:01:36.9]} 25.
exf3 {[%clk 0:00:58.3]} 25... g5 {[%clk 0:01:24.4]} 26. Nf6+ {[%clk 0:00:57.6]}
26... Kh8 {[%clk 0:01:24.4]} 27. Rh7# {[%clk 0:00:54.3]} 1-0

[Event "Late-Titled-Tuesday-Blitz-April-30-2024"]
[Site "Chess.com"]
[Date "2024.04.30"]
[Round "5"]
[White "komogro"]
[Black "NovakRatko"]
[Result "0-1"]
[WhiteElo "2552"]
[BlackElo "2401"]
[TimeControl "180+1"]
[EndTime "14:54:30 PDT"]
[Termination "NovakRatko won by resignation"]

1. e4 {[%clk 0:02:59]} 1... d5 {[%clk 0:02:59.7]} 2. exd5 {[%clk 0:02:58.9]}
2... c6 {[%clk 0:02:59.5]} 3. Nc3 {[%clk 0:02:59.8]} 3... cxd5 {[%clk
0:02:59.4]} 4. Nf3 {[%clk 0:02:59.1]} 4... Nc6 {[%clk 0:02:58.3]} 5. Bb5 {[%clk
0:02:58.1]} 5... f6 {[%clk 0:02:40.2]} 6. d4 {[%clk 0:02:55.8]} 6... Bg4 {[%clk
0:02:40.2]} 7. h3 {[%clk 0:02:49.3]} 7... Bh5 {[%clk 0:02:40.5]} 8. O-O {[%clk
0:02:48.8]} 8... a6 {[%clk 0:02:38.8]} 9. Be2 {[%clk 0:02:48.6]} 9... e6 {[%clk
0:02:38.1]} 10. Bf4 {[%clk 0:02:48.1]} 10... Bd6 {[%clk 0:02:37.9]} 11. Bxd6
{[%clk 0:02:47]} 11... Qxd6 {[%clk 0:02:38.8]} 12. Re1 {[%clk 0:02:47.5]} 12...
Nge7 {[%clk 0:02:38.6]} 13. Nb1 {[%clk 0:02:45.5]} 13... O-O {[%clk 0:02:38.2]}
14. Nbd2 {[%clk 0:02:45.6]} 14... Bf7 {[%clk 0:02:35.7]} 15. Nf1 {[%clk
0:02:45.7]} 15... Ng6 {[%clk 0:02:36.2]} 16. Ng3 {[%clk 0:02:44.7]} 16... Nf4
{[%clk 0:02:36.3]} 17. Bf1 {[%clk 0:02:45.3]} 17... Rfe8 {[%clk 0:02:35.9]} 18.
c3 {[%clk 0:02:45.4]} 18... h6 {[%clk 0:02:36.1]} 19. Qd2 {[%clk 0:02:45.5]}
19... e5 {[%clk 0:02:35.5]} 20. dxe5 {[%clk 0:02:45.1]} 20... fxe5 {[%clk
0:02:35.8]} 21. Ne4 {[%clk 0:02:43.8]} 21... Qg6 {[%clk 0:02:26.7]} 22. Ng3
{[%clk 0:02:40.8]} 22... Qf6 {[%clk 0:01:58.7]} 23. Kh2 {[%clk 0:02:34.8]} 23...
Rad8 {[%clk 0:01:50.7]} 24. Rad1 {[%clk 0:02:32.8]} 24... e4 {[%clk 0:01:46.2]}
25. Nd4 {[%clk 0:02:30.9]} 25... Ne5 {[%clk 0:01:46.4]} 26. Qe3 {[%clk
0:02:21.9]} 26... Qh4 {[%clk 0:01:45.4]} 27. Kg1 {[%clk 0:02:20.7]} 27... g6
{[%clk 0:01:31.4]} 28. Nge2 {[%clk 0:02:04.8]} 28... Nfd3 {[%clk 0:01:24.6]} 29.
g3 {[%clk 0:02:01.8]} 29... Qf6 {[%clk 0:01:21.9]} 30. Nf4 {[%clk 0:01:57.9]}
30... Nxe1 {[%clk 0:01:20.7]} 31. Rxe1 {[%clk 0:01:58.8]} 31... g5 {[%clk
0:01:17.5]} 32. Nfe2 {[%clk 0:01:43.5]} 32... Nf3+ {[%clk 0:01:14.8]} 33. Kh1
{[%clk 0:01:42.4]} 33... Nxe1 {[%clk 0:01:13.5]} 0-1

[Event "Late-Titled-Tuesday-Blitz-April-30-2024"]
[Site "Chess.com"]
[Date "2024.04.30"]
[Round "5"]
[White "dropstoneDP"]
[Black "MatthewG-p4p"]
[Result "1/2-1/2"]
[WhiteElo "2997"]
[BlackElo "2863"]
[TimeControl "180+1"]
[EndTime "14:55:05 PDT"]
[Termination "Game drawn by agreement"]

1. e4 {[%clk 0:03:00.9]} 1... c5 {[%clk 0:02:56.1]} 2. Nf3 {[%clk 0:03:00.1]}
2... g6 {[%clk 0:02:56.4]} 3. Bc4 {[%clk 0:02:57.4]} 3... Bg7 {[%clk 0:02:56.3]}
4. c3 {[%clk 0:02:56.9]} 4... e6 {[%clk 0:02:56.4]} 5. d4 {[%clk 0:02:52.1]}
5... cxd4 {[%clk 0:02:51.3]} 6. Nxd4 {[%clk 0:02:53]} 6... d5 {[%clk 0:02:49.8]}
7. exd5 {[%clk 0:02:52.7]} 7... exd5 {[%clk 0:02:50.7]} 8. Bb5+ {[%clk
0:02:52.9]} 8... Bd7 {[%clk 0:02:51.3]} 9. Bxd7+ {[%clk 0:02:49.5]} 9... Qxd7
{[%clk 0:02:52.2]} 10. O-O {[%clk 0:02:49.2]} 10... Ne7 {[%clk 0:02:52.6]} 11.
Na3 {[%clk 0:02:47.1]} 11... O-O {[%clk 0:02:52.6]} 12. Nac2 {[%clk 0:02:47.4]}
12... Nbc6 {[%clk 0:02:50.9]} 13. Be3 {[%clk 0:02:46.9]} 13... Nf5 {[%clk
0:02:49.5]} 14. Nxf5 {[%clk 0:02:46.4]} 14... Qxf5 {[%clk 0:02:50.3]} 15. Bd4
{[%clk 0:02:37]} 15... Nxd4 {[%clk 0:02:46.4]} 16. Nxd4 {[%clk 0:02:36.9]} 16...
Bxd4 {[%clk 0:02:38]} 17. Qxd4 {[%clk 0:02:37.8]} 17... Qc2 {[%clk 0:02:28]} 18.
Rab1 {[%clk 0:02:26.6]} 18... Rfd8 {[%clk 0:02:22.9]} 19. Rfc1 {[%clk
0:02:23.3]} 19... Qe2 {[%clk 0:02:09.9]} 20. Re1 {[%clk 0:02:19.9]} 20... Qc4
{[%clk 0:02:09.9]} 21. Qxc4 {[%clk 0:01:59.6]} 21... dxc4 {[%clk 0:02:10.8]} 22.
Rbd1 {[%clk 0:01:59.9]} 22... Kf8 {[%clk 0:02:08.9]} 23. Kf1 {[%clk 0:01:59.8]}
23... Rxd1 {[%clk 0:02:05.3]} 24. Rxd1 {[%clk 0:02:00.7]} 24... Ke7 {[%clk
0:02:06]} 25. Rd4 {[%clk 0:01:56.4]} 25... Rc8 {[%clk 0:02:06.3]} 26. Ke2 {[%clk
0:01:55]} 26... Rc6 {[%clk 0:02:06.1]} 27. Kd2 {[%clk 0:01:52]} 27... Rb6 {[%clk
0:02:02]} 28. Kc2 {[%clk 0:01:50.7]} 28... Rf6 {[%clk 0:01:51.2]} 29. f3 {[%clk
0:01:47.5]} 29... Re6 {[%clk 0:01:16]} 30. Kd2 {[%clk 0:01:30.2]} 30... Rb6
{[%clk 0:01:14.4]} 31. Kc2 {[%clk 0:01:30.1]} 31... Rc6 {[%clk 0:01:06]} 32. b3
{[%clk 0:01:18.5]} 32... cxb3+ {[%clk 0:01:05.3]} 33. axb3 {[%clk 0:01:19.4]}
33... Ra6 {[%clk 0:01:01.8]} 1/2-1/2

[Event "Late-Titled-Tuesday-Blitz-April-30-2024"]
[Site "Chess.com"]
[Date "2024.04.30"]
[Round "5"]
[White "GolfBeforeChess"]
[Black "ATM622"]
[Result "0-1"]
[WhiteElo "2314"]
[BlackElo "2522"]
[TimeControl "180+1"]
[EndTime "14:55:06 PDT"]
[Termination "ATM622 won by resignation"]

1. Nf3 {[%clk 0:03:00.9]} 1... d5 {[%clk 0:02:59.8]} 2. b3 {[%clk 0:03:00.6]}
2... c5 {[%clk 0:02:59.3]} 3. e3 {[%clk 0:03:00.4]} 3... Nc6 {[%clk 0:02:59.2]}
4. Bb2 {[%clk 0:03:00.7]} 4... Nf6 {[%clk 0:02:58.5]} 5. Bb5 {[%clk 0:02:59.8]}
5... Bd7 {[%clk 0:02:58.3]} 6. Bxc6 {[%clk 0:02:59.5]} 6... Bxc6 {[%clk
0:02:59.2]} 7. Ne5 {[%clk 0:02:59.8]} 7... Qc7 {[%clk 0:02:57.8]} 8. d3 {[%clk
0:02:59.3]} 8... e6 {[%clk 0:02:57.5]} 9. Nd2 {[%clk 0:02:59.3]} 9... Bd6 {[%clk
0:02:56.2]} 10. f4 {[%clk 0:02:59.4]} 10... O-O-O {[%clk 0:02:49.8]} 11. O-O
{[%clk 0:02:57.5]} 11... h5 {[%clk 0:02:47.2]} 12. a3 {[%clk 0:02:50.2]} 12...
Kb8 {[%clk 0:02:19.2]} 13. Ndf3 {[%clk 0:02:45.4]} 13... Ng4 {[%clk 0:02:07]}
14. Qe1 {[%clk 0:02:42.9]} 14... d4 {[%clk 0:02:02.6]} 15. exd4 {[%clk
0:02:25.9]} 15... cxd4 {[%clk 0:01:58.3]} 16. Bxd4 {[%clk 0:02:24.1]} 16... Bxf3
{[%clk 0:01:49.5]} 17. gxf3 {[%clk 0:02:13.4]} 17... Nxe5 {[%clk 0:01:41.6]} 18.
fxe5 {[%clk 0:02:03.4]} 18... Bc5 {[%clk 0:01:41.4]} 19. Bxc5 {[%clk 0:02:02.2]}
19... Qxc5+ {[%clk 0:01:40.9]} 20. Qf2 {[%clk 0:02:01.1]} 20... Qxe5 {[%clk
0:01:39.3]} 21. Rae1 {[%clk 0:01:58.4]} 21... Qc3 {[%clk 0:01:36.1]} 22. Re4
{[%clk 0:01:56.5]} 22... Rc8 {[%clk 0:01:34.7]} 23. Rc4 {[%clk 0:01:53.5]} 23...
Rxc4 {[%clk 0:01:34.6]} 24. dxc4 {[%clk 0:01:53.8]} 24... h4 {[%clk 0:01:33.2]}
25. Rd1 {[%clk 0:01:49.5]} 25... h3 {[%clk 0:01:30.9]} 26. Qg3+ {[%clk
0:01:42.9]} 26... Kc8 {[%clk 0:01:23.8]} 27. Qd6 {[%clk 0:01:33.5]} 27... Qe3+
{[%clk 0:01:21.3]} 28. Kf1 {[%clk 0:01:29.9]} 28... Qxf3+ {[%clk 0:01:21.2]} 29.
Ke1 {[%clk 0:01:30.2]} 29... Qe4+ {[%clk 0:01:12.9]} 30. Kf1 {[%clk 0:01:25]}
30... a6 {[%clk 0:01:05.5]} 31. Qd7+ {[%clk 0:01:15.3]} 31... Kb8 {[%clk
0:01:05.5]} 32. Qxf7 {[%clk 0:01:13.9]} 32... Qh1+ {[%clk 0:01:01.7]} 33. Ke2
{[%clk 0:01:13.2]} 33... Qxh2+ {[%clk 0:01:02.2]} 34. Ke3 {[%clk 0:01:10.5]}
34... Qe5+ {[%clk 0:01:00.1]} 35. Kf2 {[%clk 0:01:06.9]} 35... h2 {[%clk
0:00:59.5]} 0-1

[Event "Late-Titled-Tuesday-Blitz-April-30-2024"]
[Site "Chess.com"]
[Date "2024.04.30"]
[Round "5"]
[White "jefferyx"]
[Black "DrVelja"]
[Result "1-0"]
[WhiteElo "3104"]
[BlackElo "2967"]
[TimeControl "180+1"]
[EndTime "14:55:13 PDT"]
[Termination "jefferyx won by resignation"]

1. Nf3 {[%clk 0:03:00.9]} 1... Nf6 {[%clk 0:02:57.2]} 2. c4 {[%clk 0:03:00]}
2... c6 {[%clk 0:02:52.6]} 3. d4 {[%clk 0:02:59.4]} 3... d5 {[%clk 0:02:52.6]}
4. cxd5 {[%clk 0:03:00.3]} 4... cxd5 {[%clk 0:02:52.9]} 5. Nc3 {[%clk
0:03:01.1]} 5... Nc6 {[%clk 0:02:53.2]} 6. Bf4 {[%clk 0:03:01.8]} 6... Bf5
{[%clk 0:02:53.7]} 7. Qb3 {[%clk 0:03:01.3]} 7... Na5 {[%clk 0:02:52.4]} 8. Qa4+
{[%clk 0:03:01.9]} 8... Bd7 {[%clk 0:02:53]} 9. Qc2 {[%clk 0:03:02.5]} 9... e6
{[%clk 0:02:53.6]} 10. e3 {[%clk 0:03:03]} 10... Rc8 {[%clk 0:02:53.2]} 11. Bd3
{[%clk 0:03:03.3]} 11... Bb4 {[%clk 0:02:53.6]} 12. O-O {[%clk 0:03:03.2]} 12...
Nh5 {[%clk 0:02:52]} 13. Be5 {[%clk 0:02:55.8]} 13... f6 {[%clk 0:02:47.2]} 14.
Bg3 {[%clk 0:02:55.9]} 14... Nxg3 {[%clk 0:02:20.5]} 15. hxg3 {[%clk 0:02:56.8]}
15... Nc4 {[%clk 0:02:17]} 16. Rfc1 {[%clk 0:02:55]} 16... Nd6 {[%clk
0:02:13.9]} 17. Bxh7 {[%clk 0:02:18.9]} 17... f5 {[%clk 0:02:08.3]} 18. Bg6+
{[%clk 0:02:19]} 18... Ke7 {[%clk 0:02:06.8]} 19. Qb3 {[%clk 0:02:09.7]} 19...
Bxc3 {[%clk 0:01:55.3]} 20. Rxc3 {[%clk 0:02:10.6]} 20... Kf6 {[%clk 0:01:27.5]}
21. Ne5 {[%clk 0:02:10.6]} 21... Rh6 {[%clk 0:01:26.8]} 22. Qb4 {[%clk
0:01:49.8]} 22... Rxc3 {[%clk 0:01:18.6]} 23. Qxd6 {[%clk 0:01:43]} 23... Rc6
{[%clk 0:00:25]} 24. Nxd7+ {[%clk 0:01:16.3]} 24... Kxg6 {[%clk 0:00:24.1]} 25.
Ne5+ {[%clk 0:01:16]} 1-0

[Event "Late-Titled-Tuesday-Blitz-April-30-2024"]
[Site "Chess.com"]
[Date "2024.04.30"]
[Round "5"]
[White "ImportedItalianMaple"]
[Black "karinachess1"]
[Result "1-0"]
[WhiteElo "2453"]
[BlackElo "2594"]
[TimeControl "180+1"]
[EndTime "14:55:19 PDT"]
[Termination "ImportedItalianMaple won by resignation"]

1. e4 {[%clk 0:02:56.2]} 1... e5 {[%clk 0:03:00]} 2. Nc3 {[%clk 0:02:55.5]} 2...
Nf6 {[%clk 0:03:00]} 3. Bc4 {[%clk 0:02:55.5]} 3... Be7 {[%clk 0:03:00.6]} 4. d3
{[%clk 0:02:52.8]} 4... O-O {[%clk 0:03:00.8]} 5. f4 {[%clk 0:02:50.4]} 5...
exf4 {[%clk 0:02:59.9]} 6. Bxf4 {[%clk 0:02:51.3]} 6... c6 {[%clk 0:03:00.5]} 7.
Qd2 {[%clk 0:02:40.5]} 7... d5 {[%clk 0:03:00]} 8. exd5 {[%clk 0:02:38.6]} 8...
cxd5 {[%clk 0:03:00.9]} 9. Bb3 {[%clk 0:02:39]} 9... Bb4 {[%clk 0:02:53.5]} 10.
d4 {[%clk 0:02:11.5]} 10... Re8+ {[%clk 0:02:45.3]} 11. Nge2 {[%clk 0:02:11.2]}
11... Ne4 {[%clk 0:02:45.6]} 12. Qd3 {[%clk 0:02:09.5]} 12... Bf5 {[%clk
0:02:26.7]} 13. Qf3 {[%clk 0:02:08.7]} 13... Nxc3 {[%clk 0:01:05.3]} 14. bxc3
{[%clk 0:02:08.2]} 14... Qh4+ {[%clk 0:00:46]} 15. Bg3 {[%clk 0:01:54.2]} 15...
Qg5 {[%clk 0:00:29.4]} 16. O-O {[%clk 0:01:37.8]} 16... Bf8 {[%clk 0:00:17.1]}
17. Qxf5 {[%clk 0:01:16.3]} 17... Qxf5 {[%clk 0:00:17.5]} 18. Rxf5 {[%clk
0:01:16.8]} 18... Rxe2 {[%clk 0:00:18.4]} 19. Bxd5 {[%clk 0:01:17]} 19... Nc6
{[%clk 0:00:18.9]} 20. Rxf7 {[%clk 0:01:14.9]} 20... Kh8 {[%clk 0:00:18.1]} 21.
Raf1 {[%clk 0:01:12.6]} 21... Ba3 {[%clk 0:00:17.8]} 22. Rxb7 {[%clk 0:01:10.4]}
22... Rc8 {[%clk 0:00:17.9]} 23. Bxc6 {[%clk 0:01:08.3]} 23... Rxc6 {[%clk
0:00:18.4]} 24. Rb8+ {[%clk 0:01:08.3]} 1-0

[Event "Late-Titled-Tuesday-Blitz-April-30-2024"]
[Site "Chess.com"]
[Date "2024.04.30"]
[Round "5"]
[White "yaguigor"]
[Black "laskakid"]
[Result "1-0"]
[WhiteElo "2562"]
[BlackElo "2389"]
[TimeControl "180+1"]
[EndTime "14:55:22 PDT"]
[Termination "yaguigor won by checkmate"]

1. d4 {[%clk 0:03:00.9]} 1... f5 {[%clk 0:02:59.2]} 2. c4 {[%clk 0:03:00]} 2...
Nf6 {[%clk 0:02:59.2]} 3. Nc3 {[%clk 0:02:59.4]} 3... g6 {[%clk 0:02:59]} 4. h4
{[%clk 0:02:57.7]} 4... d6 {[%clk 0:02:52.7]} 5. h5 {[%clk 0:02:57.1]} 5... Bg7
{[%clk 0:02:38.1]} 6. hxg6 {[%clk 0:02:43.9]} 6... hxg6 {[%clk 0:02:37.9]} 7.
Rxh8+ {[%clk 0:02:44.6]} 7... Bxh8 {[%clk 0:02:38.2]} 8. Nf3 {[%clk 0:02:44.6]}
8... Be6 {[%clk 0:02:32.1]} 9. Ng5 {[%clk 0:02:31.7]} 9... Bg8 {[%clk
0:02:31.7]} 10. d5 {[%clk 0:02:29.6]} 10... Nbd7 {[%clk 0:02:24.4]} 11. Be3
{[%clk 0:02:22.5]} 11... Ne5 {[%clk 0:02:21]} 12. Qb3 {[%clk 0:02:20.7]} 12...
Qc8 {[%clk 0:02:14.9]} 13. Bd4 {[%clk 0:02:16.7]} 13... Nfd7 {[%clk 0:01:58.2]}
14. O-O-O {[%clk 0:02:05.7]} 14... c5 {[%clk 0:01:44.8]} 15. Be3 {[%clk
0:01:43.4]} 15... Ng4 {[%clk 0:01:41]} 16. Ne6 {[%clk 0:01:39.2]} 16... Nde5
{[%clk 0:01:33.1]} 17. Nb5 {[%clk 0:01:34.4]} 17... Bxe6 {[%clk 0:01:31.6]} 18.
dxe6 {[%clk 0:01:33.8]} 18... a6 {[%clk 0:01:27.6]} 19. Rxd6 {[%clk 0:01:23.8]}
19... Nxe3 {[%clk 0:01:09.1]} 20. Qxe3 {[%clk 0:00:45.5]} 20... Nxc4 {[%clk
0:01:04]} 21. Qh6 {[%clk 0:00:43.1]} 21... Bxb2+ {[%clk 0:00:58]} 22. Kc2 {[%clk
0:00:42]} 22... exd6 {[%clk 0:00:54.2]} 23. Qxg6+ {[%clk 0:00:40.2]} 23... Kd8
{[%clk 0:00:49.9]} 24. Qg8+ {[%clk 0:00:39.3]} 24... Ke7 {[%clk 0:00:50.1]} 25.
Qf7+ {[%clk 0:00:39.9]} 25... Kd8 {[%clk 0:00:50.3]} 26. Qf8# {[%clk 0:00:39.2]}
1-0